bitfinex-derivatives/quotes_BTCF0:USTF0_20240929
["timestamp","ask_amount","ask_price","bid_price","bid_amount"]
[1727584040034,0.10611062,65776.0,65773.0,0.076007]
[1727584040334,0.20072815,65779.0,65775.0,0.11]
[1727584040535,0.04767458,65778.0,65774.0,0.3608]
[1727584040841,0.19722815,65779.0,65774.0,0.3608]
[1727584040842,0.10620225,65775.0,65774.0,0.3608]
[1727584041732,0.076001,65779.0,65774.0,0.45724896]
[1727584041929,0.076001,65779.0,65778.0,0.11]
[1727584043041,0.076001,65779.0,65778.0,0.111]
[1727584044645,0.076001,65779.0,65778.0,0.112]
[1727584047531,0.076001,65779.0,65778.0,0.13952858]
[1727584049746,0.16469227,65779.0,65778.0,0.13952858]
[1727584050831,0.16469227,65779.0,65778.0,0.02952858]
[1727584051242,0.16469227,65779.0,65778.0,0.13952858]
[1727584056835,0.076001,65779.0,65778.0,0.23589824]
[1727584060252,0.076001,65779.0,65778.0,0.12589824]
[1727584060453,0.076001,65779.0,65778.0,0.23589824]
[1727584064555,0.076001,65779.0,65778.0,0.35077756]
[1727584064754,0.076001,65779.0,65778.0,0.13952858]
[1727584064755,0.16489076,65779.0,65778.0,0.13952858]
[1727584065553,0.28611791,65779.0,65778.0,0.13952858]
[1727584067759,0.28613099,65779.0,65778.0,0.13952858]
[1727584067960,0.11713978,65779.0,65778.0,0.13952858]
[1727584068663,0.22333407,65779.0,65778.0,0.13952858]
[1727584071863,0.076001,65779.0,65778.0,0.23595444]
[1727584072766,0.076001,65779.0,65778.0,0.23595847]
[1727584077567,0.078601,65779.0,65778.0,0.23594741]
[1727584078073,0.078601,65779.0,65778.0,0.32716215]
[1727584078270,0.078601,65779.0,65778.0,0.3506896]
[1727584078471,0.078601,65779.0,65778.0,0.23594741]
[1727584078661,0.078601,65779.0,65778.0,0.35065888]
[1727584079162,0.078601,65779.0,65778.0,0.42665988]
[1727584079563,0.078601,65779.0,65778.0,0.42465988]
[1727584079864,0.21182815,65779.0,65778.0,0.21552958]
[1727584080055,0.22527865,65779.0,65778.0,0.21552958]
[1727584086378,0.1040515,65779.0,65778.0,0.21552958]
[1727584086977,0.0146,65779.0,65778.0,0.31162302]
[1727584090875,0.0146,65779.0,65778.0,0.31162164]
[1727584093975,0.0146,65779.0,65778.0,0.57632958]
[1727584095975,0.0146,65779.0,65778.0,0.46632958]
[1727584096277,0.0146,65779.0,65778.0,0.57632958]
[1727584099887,0.0146,65779.0,65778.0,0.21552958]
[1727584100088,0.0146,65779.0,65778.0,0.57632958]
[1727584100485,0.0146,65779.0,65778.0,0.21552958]
[1727584100687,0.0146,65779.0,65778.0,0.57632958]
[1727584101789,0.0146,65779.0,65778.0,0.21552958]
[1727584101984,0.15873181,65779.0,65778.0,0.4728]
[1727584102186,0.15873181,65779.0,65778.0,0.548801]
[1727584102888,0.15873181,65779.0,65778.0,0.188001]
[1727584103085,0.15873181,65779.0,65778.0,0.5767533]
[1727584103388,0.15873181,65779.0,65778.0,0.2159533]
[1727584103590,0.15873181,65779.0,65778.0,0.5767533]
[1727584103991,0.15873181,65779.0,65778.0,0.2159533]
[1727584104176,0.15873181,65779.0,65778.0,0.5767533]
[1727584105389,0.0146,65779.0,65778.0,0.5767533]
[1727584105588,0.0553204,65779.0,65778.0,0.5767533]
[1727584105785,0.15109394,65779.0,65778.0,0.5767533]
[1727584106084,0.2929247,65779.0,65778.0,0.5767533]
[1727584108894,0.0146,65779.0,65778.0,0.5767533]
[1727584116698,0.012,65779.0,65778.0,0.5767533]
[1727584123901,0.10004936,65779.0,65778.0,0.5767533]
[1727584125509,0.15391903,65779.0,65778.0,0.5767533]
[1727584129410,0.15393484,65779.0,65778.0,0.5767533]
[1727584130114,0.29042878,65779.0,65778.0,0.5767533]
[1727584131711,0.29302878,65779.0,65778.0,0.5767533]
[1727584131910,0.29302878,65779.0,65778.0,0.67346245]
[1727584131911,0.15109394,65779.0,65778.0,0.67346245]
[1727584132112,0.0146,65779.0,65778.0,0.67346245]
[1727584134315,0.0146,65779.0,65778.0,0.78877229]
[1727584136107,0.0146,65779.0,65778.0,0.79877229]
[1727584136810,0.0146,65779.0,65778.0,0.78877229]
[1727584137925,0.0146,65779.0,65778.0,0.42797229]
[1727584138121,0.0146,65779.0,65778.0,0.78877229]
[1727584138819,0.0146,65779.0,65778.0,0.42797229]
[1727584139014,0.10263932,65779.0,65778.0,0.5767533]
[1727584139222,0.10263932,65779.0,65778.0,0.2159533]
[1727584139419,0.10263932,65779.0,65778.0,0.5767533]
[1727584145616,0.0146,65779.0,65778.0,0.5767533]
[1727584145827,0.06189002,65779.0,65778.0,0.6367533]
[1727584146129,0.10262922,65779.0,65778.0,0.6367533]
[1727584146717,0.12137451,65782.0,65781.0,0.075998]
[1727584146914,0.13649394,65786.0,65782.0,0.075997]
[1727584147120,0.0035,65788.0,65785.0,0.4708]
[1727584147317,0.075988,65790.0,65787.0,0.07601673]
[1727584147521,0.075988,65790.0,65789.0,0.11]
[1727584148627,0.087988,65790.0,65789.0,0.111]
[1727584149129,0.087988,65790.0,65789.0,0.112]
[1727584154127,0.14158615,65790.0,65789.0,0.112]
[1727584154327,0.1886554,65790.0,65789.0,0.112]
[1727584154528,0.1886554,65790.0,65789.0,0.05367554]
[1727584154736,0.1886554,65790.0,65789.0,0.08083563]
[1727584155927,0.1886554,65790.0,65789.0,0.05367554]
[1727584157028,0.22742575,65790.0,65789.0,0.05367554]
[1727584162036,0.087988,65790.0,65789.0,0.05367554]
[1727584169142,0.22760732,65790.0,65789.0,0.002]
[1727584169438,0.22760732,65790.0,65789.0,0.112]
[1727584171343,0.22640413,65790.0,65789.0,0.112]
[1727584176247,0.22650818,65790.0,65789.0,0.112]
[1727584177249,0.087988,65790.0,65789.0,0.112]
[1727584181744,0.087988,65790.0,65789.0,0.15762177]
[1727584183445,0.090588,65790.0,65789.0,0.15762177]
[1727584184948,0.090588,65790.0,65789.0,0.112]
[1727584186844,0.090588,65790.0,65789.0,0.15762177]
[1727584188252,0.090588,65790.0,65789.0,0.112]
[1727584190054,0.090588,65790.0,65789.0,0.15762177]
[1727584190247,0.090588,65790.0,65789.0,0.112]
[1727584191556,0.090588,65790.0,65789.0,0.15762177]
[1727584192053,0.090588,65790.0,65789.0,0.112]
[1727584192259,0.090588,65790.0,65788.0,0.02677578]
[1727584192260,0.075989,65789.0,65788.0,0.02677578]
[1727584192448,0.11577244,65789.0,65788.0,0.11]
[1727584192751,0.21456021,65789.0,65788.0,0.11]
[1727584193448,0.21556021,65789.0,65788.0,0.111]
[1727584194358,0.21656021,65789.0,65788.0,0.112]
[1727584195649,0.21426831,65789.0,65788.0,0.112]
[1727584199250,0.077989,65789.0,65788.0,0.112]
[1727584211666,0.077989,65789.0,65788.0,0.002]
[1727584211868,0.077989,65789.0,65788.0,0.112]
[1727584214277,0.12342587,65789.0,65788.0,0.112]
[1727584214573,0.077989,65789.0,65788.0,0.112]
[1727584214969,0.12342587,65789.0,65788.0,0.112]
[1727584215277,0.21429961,65789.0,65788.0,0.112]
[1727584218184,0.21429961,65789.0,65779.0,0.3608]
[1727584218185,0.07599,65788.0,65779.0,0.3608]
[1727584218478,0.11,65784.0,65779.0,0.3608]
[1727584218780,0.075999,65780.0,65779.0,0.3643]
[1727584218981,0.195999,65780.0,65779.0,0.3608]
[1727584219283,0.31950102,65780.0,65779.0,0.3608]
[1727584219485,0.26902889,65780.0,65779.0,0.3608]
[1727584219680,0.45597044,65780.0,65779.0,0.3608]
[1727584220576,0.45597044,65780.0,65779.0,0.3618]
[1727584220577,0.32040471,65780.0,65779.0,0.3618]
[1727584221577,0.27002889,65780.0,65779.0,0.3618]
[1727584221879,0.27302889,65780.0,65779.0,0.002]
[1727584222281,0.189999,65780.0,65779.0,0.10084165]
[1727584223187,0.189999,65780.0,65779.0,0.10083193]
[1727584226582,0.189999,65780.0,65779.0,0.17674942]
[1727584229290,0.189999,65780.0,65779.0,0.002]
[1727584234892,0.192599,65780.0,65779.0,0.002]
[1727584237401,0.082599,65780.0,65779.0,0.19196886]
[1727584237589,0.082599,65780.0,65779.0,0.30196886]
[1727584242804,0.082599,65780.0,65779.0,0.19196886]
[1727584242805,0.158598,65780.0,65779.0,0.19196886]
[1727584243593,0.158598,65780.0,65779.0,0.10072447]
[1727584244303,0.158598,65780.0,65779.0,0.002]
[1727584252300,0.158598,65780.0,65779.0,0.21889165]
[1727584256508,0.158598,65780.0,65779.0,0.002]
[1727584256712,0.158598,65780.0,65779.0,0.21887804]
[1727584259299,0.158598,65780.0,65779.0,0.002]
[1727584265308,0.082599,65780.0,65779.0,0.002]
[1727584267410,0.082599,65780.0,65779.0,0.21900035]
[1727584270923,0.079999,65780.0,65779.0,0.21900035]
[1727584274428,0.079999,65780.0,65779.0,0.10094553]
[1727584274626,0.079999,65780.0,65779.0,0.21888482]
[1727584279529,0.079999,65780.0,65779.0,0.21876921]
[1727584282419,0.079999,65780.0,65779.0,0.11987642]
[1727584282630,0.079999,65780.0,65779.0,0.002]
[1727584285121,0.082599,65780.0,65779.0,0.002]
[1727584289439,0.082599,65780.0,65779.0,0.21877946]
[1727584292652,0.158598,65780.0,65779.0,0.21877946]
[1727584292954,0.268598,65780.0,65779.0,0.21877946]
[1727584297247,0.278598,65780.0,65779.0,0.21877946]
[1727584297553,0.278598,65780.0,65779.0,0.10089747]
[1727584297742,0.278598,65780.0,65775.0,0.0035]
[1727584297743,0.152008,65776.0,65775.0,0.0035]
[1727584297947,0.152008,65776.0,65773.0,0.09125658]
[1727584297948,0.152012,65774.0,65773.0,0.09125658]
[1727584298243,0.152016,65772.0,65771.0,0.09475658]
[1727584298448,0.632816,65772.0,65771.0,0.09125658]
[1727584298650,0.632816,65772.0,65771.0,0.07598121]
[1727584299552,0.632816,65772.0,65767.0,0.0035]
[1727584299553,0.076009,65771.0,65770.0,0.07598121]
[1727584299761,0.290109,65771.0,65770.0,0.07598121]
[1727584300451,0.076011,65770.0,65769.0,0.07598121]
[1727584300758,0.196011,65770.0,65769.0,0.07598121]
[1727584301850,0.200011,65770.0,65769.0,0.07698121]
[1727584302262,0.204011,65770.0,65769.0,0.07798121]
[1727584302556,0.204011,65770.0,65769.0,0.002]
[1727584302751,0.280022,65770.0,65769.0,0.002]
[1727584312864,0.280022,65770.0,65769.0,0.06266206]
[1727584313561,0.640822,65770.0,65769.0,0.06266206]
[1727584313955,0.640822,65770.0,65769.0,0.002]
[1727584314855,0.640822,65770.0,65769.0,0.062661]
[1727584315057,0.640822,65770.0,65769.0,0.002]
[1727584315263,0.640822,65770.0,65769.0,0.06266156]
[1727584315465,0.640822,65770.0,65769.0,0.002]
[1727584317869,0.280022,65770.0,65769.0,0.002]
[1727584318171,0.640822,65770.0,65769.0,0.002]
[1727584320367,0.280022,65770.0,65769.0,0.002]
[1727584320672,0.640822,65770.0,65769.0,0.002]
[1727584321373,0.280022,65770.0,65769.0,0.002]
[1727584321573,0.640822,65770.0,65769.0,0.002]
[1727584322180,0.280022,65770.0,65769.0,0.002]
[1727584322676,0.640822,65770.0,65769.0,0.002]
[1727584322870,0.280022,65770.0,65769.0,0.002]
[1727584323270,0.640822,65770.0,65769.0,0.002]
[1727584325273,0.280022,65770.0,65769.0,0.002]
[1727584325469,0.640822,65770.0,65769.0,0.002]
[1727584326666,0.280022,65770.0,65769.0,0.10047122]
[1727584326872,0.640822,65770.0,65769.0,0.10047122]
[1727584327675,0.280022,65770.0,65769.0,0.10047122]
[1727584327871,0.640822,65770.0,65769.0,0.10047122]
[1727584329583,0.280022,65770.0,65769.0,0.10047122]
[1727584329780,0.640822,65770.0,65769.0,0.10047122]
[1727584331083,0.640822,65770.0,65769.0,0.10058166]
[1727584332177,0.280022,65770.0,65769.0,0.10058166]
[1727584332479,0.640822,65770.0,65769.0,0.10058166]
[1727584334576,0.67942544,65770.0,65769.0,0.002]
[1727584334973,0.68202544,65770.0,65769.0,0.002]
[1727584338491,0.643422,65770.0,65769.0,0.002]
[1727584338779,0.68202749,65770.0,65769.0,0.002]
[1727584339385,0.32122749,65770.0,65769.0,0.002]
[1727584339684,0.643422,65770.0,65769.0,0.002]
[1727584339881,0.282622,65770.0,65769.0,0.002]
[1727584340283,0.643422,65770.0,65769.0,0.002]
[1727584340578,0.567411,65770.0,65769.0,0.002]
[1727584340784,0.447411,65770.0,65769.0,0.002]
[1727584345284,0.3714,65770.0,65769.0,0.21736929]
[1727584346183,0.447411,65770.0,65769.0,0.21736929]
[1727584347886,0.447411,65770.0,65769.0,0.21648898]
[1727584348083,0.567411,65770.0,65769.0,0.21648898]
[1727584349086,0.567411,65770.0,65769.0,0.002]
[1727584351790,0.447411,65770.0,65769.0,0.002]
[1727584354499,0.567411,65770.0,65769.0,0.002]
[1727584357297,0.567411,65770.0,65769.0,0.0998453]
[1727584357491,0.567411,65770.0,65769.0,0.09984607]
[1727584358590,0.567411,65770.0,65769.0,0.21645694]
[1727584359195,0.567411,65770.0,65769.0,0.09984607]
[1727584359502,0.567411,65770.0,65769.0,0.21646144]
[1727584360602,0.567411,65770.0,65769.0,0.09984607]
[1727584360804,0.567411,65770.0,65769.0,0.21648294]
[1727584362402,0.567411,65770.0,65769.0,0.21649663]
[1727584364195,0.206611,65770.0,65769.0,0.21649663]
[1727584365806,0.206571,65770.0,65769.0,0.21649663]
[1727584372307,0.206571,65770.0,65769.0,0.002]
[1727584372606,0.203971,65770.0,65769.0,0.002]
[1727584375408,0.00796,65770.0,65769.0,0.078012]
[1727584379309,0.437686,65775.0,65770.0,0.07601]
[1727584379500,0.436806,65775.0,65773.0,0.11]
[1727584379701,0.436806,65775.0,65774.0,0.09774083]
[1727584380514,0.439806,65775.0,65774.0,0.09774083]
[1727584380899,0.439806,65775.0,65774.0,0.09767915]
[1727584381502,0.436806,65775.0,65774.0,0.09767915]
[1727584381705,0.439806,65775.0,65774.0,0.09967915]
[1727584387104,0.442406,65775.0,65774.0,0.09967915]
[1727584388810,0.562406,65775.0,65774.0,0.09967915]
[1727584389812,0.562406,65775.0,65774.0,0.09967049]
[1727584393015,0.562406,65775.0,65774.0,0.19086875]
[1727584393408,0.562406,65775.0,65774.0,0.09967049]
[1727584393612,0.201606,65775.0,65774.0,0.09967049]
[1727584394314,0.201606,65775.0,65774.0,0.002]
[1727584397007,0.277612,65775.0,65774.0,0.002]
[1727584398714,0.31703973,65775.0,65774.0,0.002]
[1727584400312,0.67783973,65775.0,65774.0,0.002]
[1727584401109,0.3169291,65775.0,65774.0,0.002]
[1727584401316,0.6777291,65775.0,65774.0,0.002]
[1727584402414,0.638412,65775.0,65774.0,0.09989339]
[1727584403211,0.638412,65775.0,65774.0,0.17589569]
[1727584404211,0.638412,65775.0,65774.0,0.0780023]
[1727584404420,0.638412,65775.0,65774.0,0.17588873]
[1727584404618,0.638412,65775.0,65774.0,0.09988643]
[1727584404809,0.277612,65775.0,65774.0,0.09988643]
[1727584405009,0.638412,65775.0,65774.0,0.09988643]
[1727584405518,0.277612,65775.0,65774.0,0.09988643]
[1727584405821,0.638412,65775.0,65774.0,0.09988643]
[1727584406113,0.638412,65775.0,65774.0,0.17588318]
[1727584406519,0.638412,65775.0,65774.0,0.09988643]
[1727584406913,0.638412,65775.0,65774.0,0.17588261]
[1727584407921,0.277612,65775.0,65774.0,0.17588261]
[1727584408113,0.638412,65775.0,65774.0,0.17588261]
[1727584409514,0.67771825,65775.0,65774.0,0.002]
[1727584409920,0.31691825,65775.0,65774.0,0.002]
[1727584410219,0.67771825,65775.0,65774.0,0.002]
[1727584411222,0.31691825,65775.0,65774.0,0.002]
[1727584411418,0.67771825,65775.0,65774.0,0.002]
[1727584413920,0.638412,65775.0,65774.0,0.002]
[1727584414125,0.67773351,65775.0,65774.0,0.002]
[1727584415516,0.55773351,65775.0,65774.0,0.002]
[1727584415819,0.67773351,65775.0,65774.0,0.002]
[1727584417530,0.67773351,65775.0,65774.0,0.0475946]
[1727584417531,0.638412,65775.0,65774.0,0.0475946]
[1727584417713,0.638412,65775.0,65774.0,0.002]
[1727584421525,0.277612,65775.0,65774.0,0.002]
[1727584424425,0.41472646,65775.0,65774.0,0.002]
[1727584425027,0.41212646,65775.0,65774.0,0.002]
[1727584427131,0.54869219,65775.0,65774.0,0.002]
[1727584432527,0.275012,65775.0,65774.0,0.0627928]
[1727584438945,0.277612,65775.0,65774.0,0.0627928]
[1727584439441,0.55126075,65775.0,65774.0,0.002]
[1727584441642,0.55128588,65775.0,65774.0,0.002]
[1727584446463,0.50558971,65775.0,65774.0,0.002]
[1727584446650,0.5512957,65775.0,65774.0,0.002]
[1727584447658,0.277612,65775.0,65774.0,0.0627928]
[1727584453364,0.277612,65775.0,65774.0,0.002]
[1727584457360,0.277612,65775.0,65774.0,0.06284466]
[1727584458667,0.353618,65775.0,65774.0,0.06284466]
[1727584458864,0.416815,65775.0,65774.0,1.2e-07]
[1727584459065,0.1888,65775.0,65773.0,1.2e-07]
[1727584459269,0.1888,65775.0,65767.0,0.0035]
[1727584459270,0.152026,65768.0,65767.0,0.0035]
[1727584459470,0.15203,65766.0,65765.0,0.3608]
[1727584459976,0.076018,65764.0,65763.0,0.07949618]
[1727584460269,0.076018,65764.0,65763.0,0.07599618]
[1727584460967,0.076018,65764.0,65763.0,0.17331956]
[1727584461169,0.077018,65764.0,65763.0,0.07599618]
[1727584461366,0.076019,65763.0,65762.0,0.10779618]
[1727584461565,0.076019,65763.0,65762.0,0.20511261]
[1727584462162,0.075019,65763.0,65762.0,0.10779618]
[1727584462565,0.19100977,65763.0,65762.0,0.0318]
[1727584462768,0.19100977,65763.0,65759.0,0.0035]
[1727584462769,0.076022,65760.0,65759.0,0.0035]
[1727584463072,0.076027,65756.0,65754.0,0.05851366]
[1727584463373,0.076028,65755.0,65754.0,0.05851366]
[1727584463872,0.076028,65755.0,65754.0,0.0318]
[1727584464173,0.074028,65755.0,65754.0,0.0318]
[1727584465072,0.074028,65755.0,65752.0,0.36164]
[1727584465271,0.074028,65755.0,65754.0,0.003]
[1727584465572,0.074028,65755.0,65754.0,0.004]
[1727584466371,0.074028,65755.0,65754.0,0.003]
[1727584468673,0.074028,65755.0,65754.0,0.004]
[1727584469775,0.12,65756.0,65754.0,0.10154117]
[1727584469978,0.196027,65756.0,65755.0,0.18860582]
[1727584470272,0.196027,65756.0,65755.0,0.09754117]
[1727584471275,0.272054,65756.0,65755.0,0.09754117]
[1727584471481,0.272054,65756.0,65755.0,0.09954117]
[1727584473687,0.272054,65756.0,65755.0,0.17540277]
[1727584476784,0.272054,65756.0,65755.0,0.002]
[1727584486184,0.29932356,65756.0,65755.0,0.002]
[1727584490379,0.30192356,65756.0,65755.0,0.002]
[1727584491787,0.30192356,65756.0,65755.0,0.09934279]
[1727584492177,0.30192356,65756.0,65755.0,0.19040744]
[1727584493193,0.30192356,65756.0,65755.0,0.09934279]
[1727584494294,0.274654,65756.0,65755.0,0.09934279]
[1727584499200,0.198627,65756.0,65755.0,0.21547574]
[1727584499695,0.23860817,65756.0,65755.0,0.002]
[1727584501388,0.11860817,65756.0,65755.0,0.002]
[1727584501589,0.11860817,65756.0,65755.0,0.198028]
[1727584502897,0.078627,65756.0,65755.0,0.198028]
[1727584504299,0.078627,65756.0,65755.0,0.230528]
[1727584506706,0.078627,65756.0,65755.0,0.32784793]
[1727584507314,0.078627,65756.0,65755.0,0.32784684]
[1727584507704,0.0026,65756.0,65755.0,0.32784684]
[1727584508016,0.0035,65762.0,65761.0,0.076021]
[1727584508204,0.0041,65770.0,65766.0,0.076015]
[1727584508205,0.0035,65768.0,65766.0,0.076015]
[1727584508410,0.53838318,65772.0,65766.0,0.15196949]
[1727584508803,0.53838318,65772.0,65767.0,0.076014]
[1727584510514,0.00528145,65769.0,65767.0,0.076014]
[1727584511206,0.00228145,65769.0,65767.0,0.076014]
[1727584511405,0.00628145,65769.0,65767.0,0.078014]
[1727584513719,0.00628145,65769.0,65767.0,0.10503265]
[1727584515020,0.14684045,65768.0,65767.0,0.10503265]
[1727584515212,0.14684045,65768.0,65767.0,0.46583265]
[1727584516209,0.04058359,65768.0,65767.0,0.46583265]
[1727584516411,0.04358359,65768.0,65767.0,0.10503265]
[1727584516823,0.04358359,65768.0,65767.0,0.46583265]
[1727584517006,0.04358359,65768.0,65767.0,0.10503265]
[1727584517524,0.04458359,65768.0,65767.0,0.46583265]
[1727584517701,0.04458359,65768.0,65767.0,0.10503265]
[1727584518315,0.04458359,65768.0,65767.0,0.46583265]
[1727584518814,0.04458359,65768.0,65767.0,0.10503265]
[1727584519007,0.04458359,65768.0,65767.0,0.46583265]
[1727584519715,0.04458359,65768.0,65767.0,0.10503265]
[1727584519925,0.04458359,65768.0,65767.0,0.46583265]
[1727584520716,0.04458359,65768.0,65767.0,0.58583265]
[1727584521304,0.004,65768.0,65767.0,0.22503265]
[1727584521505,0.04458257,65768.0,65767.0,0.22503265]
[1727584521711,0.04458257,65768.0,65767.0,0.58583265]
[1727584521919,0.004,65768.0,65767.0,0.58583265]
[1727584522315,0.004,65768.0,65767.0,0.46583265]
[1727584522921,0.004,65768.0,65767.0,0.10503265]
[1727584523220,0.004,65768.0,65767.0,0.46583265]
[1727584523718,0.004,65768.0,65767.0,0.10503265]
[1727584524015,0.004,65768.0,65767.0,0.46583265]
[1727584525320,0.004,65768.0,65767.0,0.10503265]
[1727584525721,0.004,65768.0,65767.0,0.46583265]
[1727584526921,0.004,65768.0,65767.0,0.10503265]
[1727584527117,0.004,65768.0,65767.0,0.46583265]
[1727584529815,0.12543642,65768.0,65767.0,0.46583265]
[1727584530018,0.21329929,65768.0,65767.0,0.46583265]
[1727584531325,0.21329437,65768.0,65767.0,0.46583265]
[1727584531514,0.09185795,65768.0,65767.0,0.46583265]
[1727584535219,0.004,65768.0,65767.0,0.46583265]
[1727584535918,0.09185795,65768.0,65767.0,0.46583265]
[1727584536218,0.14056573,65768.0,65767.0,0.46583265]
[1727584536423,0.28223775,65768.0,65767.0,0.46583265]
[1727584536821,0.14056573,65768.0,65767.0,0.46583265]
[1727584537013,0.004,65768.0,65767.0,0.46583265]
[1727584537418,0.004,65768.0,65767.0,0.52648114]
[1727584540824,0.004,65768.0,65767.0,0.46583265]
[1727584542514,0.0066,65768.0,65767.0,0.46583265]
[1727584550135,0.0066,65768.0,65767.0,0.438814]
[1727584550430,0.0066,65768.0,65767.0,0.49965932]
[1727584551660,0.0066,65768.0,65767.0,0.13885932]
[1727584551858,0.04724993,65768.0,65767.0,0.002]
[1727584552153,0.15833895,65768.0,65767.0,0.078014]
[1727584552448,0.29992839,65768.0,65767.0,0.078014]
[1727584553153,0.14818944,65768.0,65767.0,0.078014]
[1727584560052,0.0066,65768.0,65767.0,0.13885932]
[1727584561752,0.0066,65768.0,65767.0,0.078014]
[1727584565742,0.0066,65768.0,65767.0,0.13885932]
[1727584569658,0.0066,65768.0,65767.0,0.078014]
[1727584569860,0.0066,65768.0,65767.0,0.13884649]
[1727584570846,0.0066,65768.0,65767.0,0.078014]
[1727584571452,0.0066,65768.0,65767.0,0.13884743]
[1727584572066,0.0066,65768.0,65767.0,0.078014]
[1727584575059,0.04668165,65768.0,65767.0,0.078014]
[1727584575255,0.0595917,65768.0,65767.0,0.078014]
[1727584575461,0.14621002,65768.0,65767.0,0.078014]
[1727584575766,0.14618915,65768.0,65767.0,0.078014]
[1727584576767,0.14618915,65768.0,65767.0,0.03790572]
[1727584577851,0.1444774,65768.0,65766.0,0.3608]
[1727584578056,0.29621635,65768.0,65766.0,0.3608]
[1727584578264,0.1378774,65767.0,65766.0,0.3608]
[1727584578458,0.28961635,65767.0,65766.0,0.3608]
[1727584579157,0.28961635,65767.0,65766.0,0.3618]
[1727584579869,0.29161635,65767.0,65766.0,0.001]
[1727584580051,0.1398774,65767.0,65766.0,0.002]
[1727584580256,0.29161635,65767.0,65766.0,0.002]
[1727584580458,0.1398774,65767.0,65766.0,0.002]
[1727584580651,0.1438774,65767.0,65766.0,0.002]
[1727584581461,0.14401951,65767.0,65766.0,0.002]
[1727584582058,0.006,65767.0,65766.0,0.002]
[1727584586362,0.082014,65767.0,65766.0,0.002]
[1727584586573,0.076015,65766.0,65765.0,0.06082477]
[1727584586774,0.076015,65766.0,65763.0,0.0035]
[1727584586775,0.0307,65766.0,65763.0,0.04912176]
[1727584586969,0.0307,65766.0,65763.0,0.00290001]
[1727584586970,0.0312,65765.0,65763.0,0.00290001]
[1727584587182,0.12,65764.0,65763.0,0.00290001]
[1727584587866,0.119,65764.0,65763.0,0.00290001]
[1727584588065,0.118,65764.0,65763.0,0.00290001]
[1727584588274,0.194018,65764.0,65763.0,0.00290001]
[1727584588864,0.196018,65764.0,65763.0,0.00390001]
[1727584589360,0.201018,65764.0,65763.0,0.00490001]
[1727584589559,0.561818,65764.0,65763.0,0.00490001]
[1727584589978,0.83396306,65764.0,65763.0,0.00244609]
[1727584590476,0.6974556,65764.0,65763.0,0.00244609]
[1727584591171,0.64597171,65764.0,65763.0,0.00244609]
[1727584591366,0.69742136,65764.0,65763.0,0.00244609]
[1727584591974,0.64597171,65764.0,65763.0,0.00244609]
[1727584592373,0.77341932,65764.0,65763.0,0.00244609]
[1727584592574,1.77818971,65764.0,65763.0,0.00244609]
[1727584593081,1.82940141,65764.0,65763.0,0.00244609]
[1727584595071,2.19020141,65764.0,65763.0,0.00244609]
[1727584596275,1.46860141,65764.0,65763.0,0.00244609]
[1727584596579,2.19020141,65764.0,65763.0,0.00244609]
[1727584597080,2.054836,65764.0,65763.0,0.00244609]
[1727584597478,1.333236,65764.0,65763.0,0.00244609]
[1727584597671,2.054836,65764.0,65763.0,0.00244609]
[1727584598476,1.333236,65764.0,65763.0,0.00244609]
[1727584599083,2.054836,65764.0,65763.0,0.00244609]
[1727584600084,1.333236,65764.0,65763.0,0.00244609]
[1727584600477,2.054836,65764.0,65763.0,0.00244609]
[1727584600678,1.333236,65764.0,65763.0,0.00244609]
[1727584600878,2.054836,65764.0,65763.0,0.00244609]
[1727584601079,1.333236,65764.0,65763.0,0.00244609]
[1727584601397,2.054836,65764.0,65763.0,0.00244609]
[1727584601579,2.130854,65764.0,65763.0,0.00244609]
[1727584602074,1.409254,65764.0,65763.0,0.00244609]
[1727584602579,2.130854,65764.0,65763.0,0.00244609]
[1727584605096,2.21434596,65764.0,65763.0,0.00122855]
[1727584605394,1.49274596,65764.0,65763.0,0.00122855]
[1727584605585,2.21434596,65764.0,65763.0,0.00122855]
[1727584606592,2.21433635,65764.0,65763.0,0.00122855]
[1727584607200,1.61433635,65764.0,65763.0,0.00122855]
[1727584607995,1.15813635,65764.0,65763.0,0.00122855]
[1727584608404,0.43653635,65764.0,65763.0,0.00122855]
[1727584608698,1.15813635,65764.0,65763.0,0.00122855]
[1727584609007,0.152054,65756.0,65755.0,0.0035]
[1727584609209,0.076031,65752.0,65747.0,0.0674]
[1727584609502,0.556836,65748.0,65747.0,0.0639]
[1727584610909,0.59508073,65748.0,65747.0,0.0639]
[1727584611094,0.59508073,65748.0,65747.0,0.0739]
[1727584611494,0.59502505,65748.0,65747.0,0.0739]
[1727584611801,0.59502505,65748.0,65747.0,0.0819]
[1727584612101,0.556836,65748.0,65747.0,0.09641965]
[1727584612299,0.556836,65748.0,65747.0,0.0509]
[1727584613405,0.632872,65748.0,65747.0,0.09642363]
[1727584614504,0.632872,65748.0,65747.0,0.0509]
[1727584615599,0.272072,65748.0,65747.0,0.0509]
[1727584616098,0.632872,65748.0,65747.0,0.0509]
[1727584616499,0.632872,65748.0,65747.0,0.11172477]
[1727584616911,0.272072,65748.0,65747.0,0.11172477]
[1727584617211,0.632872,65748.0,65747.0,0.11172477]
[1727584617611,0.632872,65748.0,65747.0,0.0509]
[1727584618000,0.272072,65748.0,65747.0,0.11172477]
[1727584618312,0.632872,65748.0,65747.0,0.11172477]
[1727584620105,0.632872,65748.0,65747.0,0.0509]
[1727584623308,0.67111026,65748.0,65747.0,0.018]
[1727584623909,0.79121627,65748.0,65747.0,1e-06]
[1727584624212,0.79074957,65748.0,65747.0,1e-06]
[1727584624405,0.91172918,65748.0,65747.0,1e-06]
[1727584624715,0.146082,65744.0,65743.0,0.0035]
[1727584624913,0.15209,65740.0,65739.0,0.0035]
[1727584625219,0.152096,65738.0,65737.0,0.0308]
[1727584625520,0.512896,65738.0,65737.0,0.0308]
[1727584625905,0.505896,65738.0,65737.0,0.0308]
[1727584626615,0.512896,65738.0,65737.0,0.0318]
[1727584628008,0.152096,65738.0,65737.0,0.0318]
[1727584628209,0.512896,65738.0,65737.0,0.0318]